fUSD/lending_fUSD_20250806
["ID","MTS","AMOUNT","RATE_DAILY","PERIOD"]
[377557244,1754442633052,-500.0,0.00020086,2]
[377557245,1754442633061,-500.0,0.00020086,2]
[377557246,1754442633073,-500.0,0.00020086,2]
[377557247,1754442633082,-500.0,0.00020086,2]
[377557248,1754442633092,-500.0,0.00020086,2]
[377557249,1754442633102,-500.0,0.00020086,2]
[377557250,1754442633112,-500.0,0.00020086,2]
[377557251,1754442633121,-500.0,0.00020086,2]
[377557252,1754442633130,-500.0,0.00020086,2]
[377557253,1754442633140,-500.0,0.00020086,2]
[377557254,1754442633149,-500.0,0.00020086,2]
[377557255,1754442633159,-500.0,0.00020086,2]
[377557256,1754442633168,-500.0,0.00020086,2]
[377557257,1754442633178,-500.0,0.00020086,2]
[377557258,1754442633187,-500.0,0.00020086,2]
[377557259,1754442633205,-203.29397836,0.00020086,2]
[377557260,1754442633218,-500.0,0.00020086,2]
[377557261,1754442633227,-500.0,0.00020086,2]
[377557262,1754442633237,-500.0,0.00020086,2]
[377557263,1754442633247,-500.0,0.00020086,2]
[377557264,1754442633256,-244.81044204,0.00020086,2]
[377557265,1754442633265,-1000.0,0.00020088,2]
[377557266,1754442633275,-300.0,0.00020382,2]
[377557267,1754442633285,-250.0,0.00020382,2]
[377557268,1754442633294,-300.0,0.00020382,2]
[377557269,1754442633304,-1000.0,0.00020382,4]
[377557270,1754442633313,-1000.0,0.00020492,4]
[377557271,1754442633323,-376.7,0.00020534,2]
[377557272,1754442633332,-4884.43073466,0.00020575,2]
[377557273,1754442633342,-600.0,0.00021144,2]
[377557274,1754442633352,-600.0,0.00021144,2]
[377557275,1754442633361,-600.0,0.00021144,2]
[377557276,1754442633370,-642.41380371,0.00021144,2]
[377557277,1754442633380,-216.31791382,0.00021144,2]
[377557278,1754442633390,-500.0,0.00021144,2]
[377557279,1754442633399,-500.0,0.00021144,2]
[377557280,1754442633408,-500.0,0.00021144,2]
[377557281,1754442633418,-500.0,0.00021144,2]
[377557282,1754442633427,-500.0,0.00021144,2]
[377557283,1754442633437,-500.0,0.00021144,2]
[377557284,1754442633447,-500.0,0.00021144,2]
[377557285,1754442633457,-500.0,0.00021144,2]
[377557286,1754442633466,-500.0,0.00021144,2]
[377557287,1754442633476,-394.49325013,0.00021144,2]
[377557288,1754442633485,-1000.0,0.00021156,2]
[377557289,1754442633495,-1000.0,0.00021156,2]
[377557290,1754442633506,-10011.9571302,0.00021157,2]
[377557291,1754442633520,-722.942745,0.00021157,2]
[377557292,1754442633533,-20245.04428169,0.00021157,2]
[377557293,1754442633542,-171.98609342,0.00021323,2]
[377557294,1754442633552,-624.86,0.00021423,2]
[377557295,1754442633563,-376.7,0.00021427,2]
[377557296,1754442633573,-5000.0,0.00021918,2]
[377557297,1754442633583,-150.0,0.00021918,2]
[377557298,1754442633593,-1680.0,0.00021973,2]
[377557299,1754442633603,-1000.0,0.0002232,2]
[377557300,1754442633614,-624.86,0.00023012,2]
[377557301,1754442633624,-152.25,0.00023973,2]
[377557302,1754442633634,-2351.0,0.00024039,2]
[377557303,1754442633643,-4449.30121102,0.00024224,2]
[377557304,1754442633652,-476.60235448,0.00024549,2]
[377557305,1754442633662,-1000.0,0.00024552,2]
[377557306,1754442633671,-1000.0,0.00024599,2]
[377557307,1754442633681,-624.86,0.00024601,2]
[377557308,1754442633691,-500.0,0.00024874,2]
[377557309,1754442633701,-413.51442012,0.00025121,2]
[377557310,1754442633713,-457.32188848,0.00025677,2]
[377557311,1754442633723,-1409.77700668,0.00026115,2]
[377557312,1754442633733,-624.86,0.00026189,2]
[377557313,1754442633743,-1000.0,0.00026299,2]
[377557314,1754442633752,-3292.0,0.00026299,2]
[377557315,1754442633762,-1000.0,0.00026784,2]
[377557316,1754442633772,-344.1,0.00027397,2]
[377557317,1754442633782,-533.18,0.00027569,2]
[377557318,1754442633791,-500.0,0.00027682,2]
[377557319,1754442633800,-624.86,0.00027778,2]
[377557320,1754442633810,-504.0,0.00028247,2]
[377557321,1754442633820,-344.1,0.00028767,2]
[377557322,1754442633829,-4609.0,0.00028772,2]
[377557323,1754442633838,-2751.0,0.0002895,2]
[377557324,1754442633847,-163.68,0.00029283,2]
[377557325,1754442633857,-163.68,0.0002932,2]
[377557326,1754442633867,-163.68,0.00029357,2]
[377557327,1754442633877,-624.86,0.00029367,2]
[377557328,1754442633887,-163.68,0.00029393,2]
[377557329,1754442633898,-163.68,0.0002943,2]
[377557330,1754442633908,-163.68,0.00029466,2]
[377557331,1754442633917,-163.68,0.00029503,2]
[377557332,1754442633927,-163.68,0.0002954,2]
[377557333,1754442633936,-163.68,0.00029576,2]
[377557334,1754442633946,-151.0,0.00030055,3]
[377557335,1754442633955,-344.1,0.00030136,2]
[377557336,1754442633964,-298.65246442,0.00030137,5]
[377557337,1754442633974,-500.0,0.0003049,2]
[377557338,1754442633983,-23900.0,0.000307,2]
[377557339,1754442633993,-624.86,0.00030955,2]
[377557340,1754442634003,-150.0,0.0003104,2]
[377557341,1754442634012,-1005.0,0.00031477,3]
[377557342,1754442634022,-344.1,0.00031506,2]
[377557343,1754442634031,-151.0,0.00031614,4]
[377557344,1754442634041,-683.374,0.00032355,32]
[377557345,1754442634051,-624.86,0.00032544,2]
[377557346,1754442634062,-344.1,0.00032876,2]
[377557347,1754442634072,-452.32,0.00032888,120]
[377557348,1754442634083,-841.80510082,0.00032919,2]
[377557349,1754442634092,-1651.0,0.00033086,2]
[377557350,1754442634103,-1170.0,0.00033086,2]
[377557351,1754442634112,-892.0,0.00033086,2]
[377557352,1754442634122,-2170.259,0.00033154,2]
[377557353,1754442634132,-500.33,0.00033154,2]
[377557354,1754442634142,-865.0,0.00033154,2]
[377557355,1754442634152,-151.0,0.00033172,4]
[377557356,1754442634162,-500.0,0.00033299,2]
[377557357,1754442634172,-250.0,0.0003395,2]
[377557358,1754442634181,-200.0,0.00034,30]
[377557359,1754442634191,-624.86,0.00034133,2]
[377557360,1754442634204,-512.0,0.0003423,2]
[377557361,1754442634215,-344.1,0.00034246,2]
[377557362,1754442634224,-152.25,0.00034247,2]
[377557363,1754442634234,-151.0,0.0003473,5]
[377557364,1754442634244,-230.2755,0.00034759,2]
[377557365,1754442634255,-203.0,0.00034776,2]
[377557366,1754442634264,-1000.0,0.000348,2]
[377557367,1754442634274,-2000.0,0.000348,2]
[377557368,1754442634283,-150.114,0.00034804,2]
[377557369,1754442634293,-150.552,0.00034804,2]
[377557370,1754442634303,-161.572,0.00034804,2]
[377557371,1754442634313,-150.274,0.00034831,2]
[377557372,1754442634323,-150.473,0.00034831,2]
[377557373,1754442634332,-295.121,0.00034859,2]
[377557374,1754442634343,-177.096,0.00034859,2]
[377557375,1754442634353,-292.297,0.00034859,2]
[377557376,1754442634363,-185.805,0.00034859,2]
[377557377,1754442634373,-159.51,0.00034859,2]
[377557378,1754442634383,-204.085,0.00034859,2]
[377557379,1754442634392,-252.603,0.00034859,2]
[377557380,1754442634402,-206.439,0.00034859,2]
[377557381,1754442634412,-151.0,0.00034859,2]
[377557382,1754442634427,-955.0,0.00034859,2]
[377557383,1754442634440,-3361.0,0.00034859,2]
[377557384,1754442634451,-809.0,0.00034859,2]
[377557385,1754442634469,-1251.0,0.00034859,2]
[377557386,1754442634478,-597.0,0.00034859,2]
[377557387,1754442634488,-435.60429552,0.00034859,2]
[377557388,1754442634512,-427.92221897,0.00034859,2]
[377557389,1754442634524,-429.47348551,0.00034859,2]
[377557390,1754442634533,-564.0,0.00034859,2]
[377557391,1754442634543,-958.0,0.00034859,2]
[377557392,1754442634553,-798.52585287,0.00034859,2]
[377557393,1754442634564,-1225.47414713,0.00034859,2]
[377557394,1754442634574,-254.01199964,0.0003488,2]
[377557395,1754442634584,-150.0,0.0003488,2]
[377557396,1754442634593,-1868.96662638,0.0003488,2]
[377557397,1754442634603,-150.0,0.0003488,2]
[377557398,1754442634613,-561.31949781,0.0003488,2]
[377557399,1754442634624,-162.98,0.00035294,2]
[377557400,1754442634634,-600.0,0.000354,12]
[377557401,1754442634643,-1200.0,0.000355,12]
[377557402,1754442634653,-1000.0,0.00035506,2]
[377557403,1754442634663,-13334.35861572,0.00035509,2]
[377557404,1754442634673,-10000.0,0.00035516,2]
[377557405,1754442634683,-5000.0,0.00035516,2]
[377557406,1754442634692,-156.13917397,0.00035516,2]
[377557407,1754442634702,-157.81523369,0.00035516,8]
[377557408,1754442634711,-160.41409882,0.00035516,15]
[377557409,1754442634721,-32212.1019067,0.00035596,2]
[377557410,1754442634731,-3221.21019067,0.00035599,2]
[377557411,1754442634740,-1900.0,0.000356,12]
[377557412,1754442634750,-5831.40932556,0.00035601,2]
[377557413,1754442634792,-5572.31566154,0.00035601,2]
[377557414,1754442634804,-1930.63362858,0.00035601,2]
[377557415,1754442634814,-1000.0,0.00035605,2]
[377557416,1754442634823,-16004.29175961,0.00035606,2]
[377557417,1754442634835,-9828.16768474,0.00035606,2]
[377557418,1754442634846,-24925.46841118,0.00035606,2]
[377557419,1754442634969,-55542.00843647,0.00035606,2]
[377557420,1754442634979,-728.77,0.00035609,2]
[377557421,1754442634989,-412.45,0.00035615,2]
[377557422,1754442634998,-548.0,0.00035616,5]
[377557423,1754442635007,-416.42159363,0.00035616,2]
[377557424,1754442635016,-653.55,0.00035616,14]
[377557425,1754442635025,-400.0,0.00035616,14]
[377557426,1754442635034,-400.0,0.00035616,14]
[377557427,1754442635044,-400.0,0.00035616,14]
[377557428,1754442635053,-400.0,0.00035616,14]
[377557429,1754442635062,-400.0,0.00035616,14]
[377557430,1754442635071,-400.0,0.00035616,14]
[377557431,1754442635081,-400.0,0.00035616,14]
[377557432,1754442635090,-400.0,0.00035616,14]
[377557433,1754442635099,-400.0,0.00035616,14]
[377557434,1754442635108,-400.0,0.00035616,14]
[377557435,1754442635118,-400.0,0.00035616,14]
[377557436,1754442635128,-400.0,0.00035616,14]
[377557437,1754442635138,-400.0,0.00035616,14]
[377557438,1754442635148,-869.57,0.00035616,14]
[377557439,1754442635158,-1599.79,0.00035616,14]
[377557440,1754442635167,-400.0,0.00035616,14]
[377557441,1754442635176,-400.0,0.00035616,14]
[377557442,1754442635185,-400.0,0.00035616,14]
[377557443,1754442635194,-400.0,0.00035616,14]
[377557444,1754442635208,-400.0,0.00035616,14]
[377557445,1754442635217,-265.53758878,0.00035616,14]
[377557446,1754442635226,-400.0,0.00035616,14]
[377557447,1754442635236,-400.0,0.00035616,14]
[377557448,1754442635245,-400.0,0.00035616,14]
[377557449,1754442635255,-400.0,0.00035616,14]
[377557450,1754442635264,-400.0,0.00035616,14]
[377557451,1754442635274,-400.0,0.00035616,14]
[377557452,1754442635283,-400.0,0.00035616,14]
[377557453,1754442635294,-714.57,0.00035616,14]
[377557454,1754442635303,-400.0,0.00035616,14]
[377557455,1754442635313,-668.76,0.00035616,14]
[377557456,1754442635322,-641.26,0.00035616,14]
[377557457,1754442635332,-400.0,0.00035616,14]
[377557458,1754442635342,-494.87,0.00035616,14]
[377557459,1754442635351,-400.0,0.00035616,14]
[377557460,1754442635361,-619.09,0.00035616,14]
[377557461,1754442635370,-702.43,0.00035616,14]
[377557462,1754442635380,-636.76,0.00035616,14]
[377557463,1754442635719,-1360.36,0.00035616,14]
[377557464,1754442635813,-1144.8,0.00035616,14]
[377557465,1754442635829,-571.71,0.00035616,14]
[377557466,1754442635840,-1627.65,0.00035616,14]
[377557467,1754442635850,-885.23,0.00035616,14]
[377557468,1754442635860,-591.54,0.00035616,14]
[377557469,1754442635870,-1168.08,0.00035616,14]
[377557470,1754442635880,-400.0,0.00035616,14]
[377557471,1754442635889,-400.0,0.00035616,14]
[377557472,1754442635900,-468.66,0.00035616,14]
[377557473,1754442635912,-400.0,0.00035616,14]
[377557474,1754442635924,-400.0,0.00035616,14]
[377557475,1754442635934,-1669.14,0.00035616,14]
[377557476,1754442635943,-1562.12,0.00035616,14]
[377557477,1754442635952,-400.0,0.00035616,14]
[377557478,1754442635963,-720.08,0.00035616,14]
[377557479,1754442635972,-400.0,0.00035616,14]
[377557480,1754442635983,-400.0,0.00035616,14]
[377557481,1754442635992,-400.0,0.00035616,14]
[377557482,1754442636001,-400.0,0.00035616,14]
[377557483,1754442636011,-400.0,0.00035616,14]
[377557484,1754442636023,-400.0,0.00035616,14]
[377557485,1754442636034,-1089.7,0.00035616,14]
[377557486,1754442636043,-490.35,0.00035616,14]
[377557487,1754442636052,-400.0,0.00035616,14]
[377557488,1754442636062,-548.76,0.00035616,14]
[377557489,1754442636071,-749.78,0.00035616,14]
[377557490,1754442636080,-400.0,0.00035616,14]
[377557491,1754442636090,-425.6,0.00035616,14]
[377557492,1754442636099,-400.0,0.00035616,14]
[377557493,1754442636108,-400.0,0.00035616,14]
[377557494,1754442636118,-469.53,0.00035616,14]
[377557495,1754442636128,-454.1,0.00035616,14]
[377557496,1754442636138,-400.0,0.00035616,14]
[377557497,1754442636147,-462.88,0.00035616,14]
[377557498,1754442636157,-806.86,0.00035616,14]
[377557499,1754442636167,-500.0,0.00035616,14]
[377557500,1754442636178,-509.9970624,0.00035616,14]
[377557501,1754442636188,-400.0,0.00035616,14]
[377557502,1754442636200,-400.0,0.00035616,14]
[377557503,1754442636219,-400.0,0.00035616,14]
[377557504,1754442636233,-836.15,0.00035616,14]
[377557505,1754442636242,-413.48,0.00035616,14]
[377557506,1754442636252,-400.0,0.00035616,14]
[377557507,1754442636260,-400.0,0.00035616,14]
[377557508,1754442636270,-400.0,0.00035616,14]
[377557509,1754442636279,-400.0,0.00035616,14]
[377557510,1754442636288,-895.4,0.00035616,14]
[377557511,1754442636298,-400.0,0.00035616,14]
[377557512,1754442636308,-400.0,0.00035616,14]
[377557513,1754442636317,-400.0,0.00035616,14]
[377557514,1754442636327,-400.0,0.00035616,14]
[377557515,1754442636336,-702.19,0.00035616,14]
[377557516,1754442636346,-556.09,0.00035616,14]
[377557517,1754442636355,-400.0,0.00035616,14]
[377557518,1754442636366,-400.0,0.00035616,14]
[377557519,1754442636377,-400.0,0.00035616,14]
[377557520,1754442636386,-690.4,0.00035616,14]
[377557521,1754442636395,-945.13,0.00035616,14]
[377557522,1754442636405,-300.0,0.00035616,14]
[377557523,1754442636414,-814.37,0.00035616,14]
[377557524,1754442636424,-400.0,0.00035616,14]
[377557525,1754442636433,-172.55708442,0.00035616,14]
[377557526,1754442636442,-400.0,0.00035616,14]
[377557527,1754442636451,-888.16,0.00035616,14]
[377557528,1754442636461,-790.45,0.00035616,14]
[377557529,1754442636471,-400.0,0.00035616,14]
[377557530,1754442636482,-1548.89,0.00035616,14]
[377557531,1754442636491,-400.0,0.00035616,14]
[377557532,1754442636500,-1700.4,0.00035616,14]
[377557533,1754442636510,-1335.25,0.00035616,14]
[377557534,1754442636520,-400.0,0.00035616,14]
[377557535,1754442636530,-1795.56,0.00035616,14]
[377557536,1754442636539,-400.0,0.00035616,14]
[377557537,1754442636549,-400.0,0.00035616,14]
[377557538,1754442636559,-565.7,0.00035616,14]
[377557539,1754442636569,-400.0,0.00035616,14]
[377557540,1754442636578,-1441.51,0.00035616,14]
[377557541,1754442636588,-746.64,0.00035616,14]
[377557542,1754442636598,-1198.41,0.00035616,14]
[377557543,1754442636608,-400.0,0.00035616,14]
[377557544,1754442636617,-400.0,0.00035616,14]
[377557545,1754442636630,-2007.75,0.00035616,14]
[377557546,1754442636640,-400.38,0.00035616,14]
[377557547,1754442636649,-473.95,0.00035616,14]
[377557548,1754442636659,-400.0,0.00035616,14]
[377557549,1754442636668,-533.1460482,0.00035616,14]
[377557550,1754442636678,-400.0,0.00035616,14]
[377557551,1754442636687,-705.48,0.00035616,14]
[377557552,1754442636696,-400.0,0.00035616,14]
[377557553,1754442636705,-1670.85,0.00035616,14]
[377557554,1754442636716,-400.0,0.00035616,14]
[377557555,1754442636727,-1109.3,0.00035616,14]
[377557556,1754442636738,-400.0,0.00035616,14]
[377557557,1754442636748,-400.0,0.00035616,14]
[377557558,1754442636757,-676.32,0.00035616,14]
[377557559,1754442636767,-435.15,0.00035616,14]
[377557560,1754442636776,-1083.01,0.00035616,14]
[377557561,1754442636786,-1858.55,0.00035616,14]
[377557562,1754442636797,-199.09637167,0.00035616,14]
[377557563,1754442636807,-400.0,0.00035616,14]
[377557564,1754442636816,-400.0,0.00035616,14]
[377557565,1754442636825,-618.68,0.00035616,14]
[377557566,1754442636835,-400.0,0.00035616,14]
[377557567,1754442636844,-502.38463994,0.00035616,14]
[377557568,1754442636854,-2053.3,0.00035616,14]
[377557569,1754442636864,-923.51,0.00035616,14]
[377557570,1754442636874,-556.6,0.00035616,14]
[377557571,1754442636886,-400.0,0.00035616,14]
[377557572,1754442636895,-1815.69,0.00035616,14]
[377557573,1754442636905,-400.0,0.00035616,14]
[377557574,1754442636915,-400.0,0.00035616,14]
[377557575,1754442636926,-400.0,0.00035616,14]
[377557576,1754442636935,-400.0,0.00035616,14]
[377557577,1754442636946,-713.06,0.00035616,14]
[377557578,1754442636955,-1040.29,0.00035616,14]
[377557579,1754442636965,-400.0,0.00035616,14]
[377557580,1754442636976,-400.0,0.00035616,14]
[377557581,1754442636985,-400.0,0.00035616,14]
[377557582,1754442636995,-400.0,0.00035616,14]
[377557583,1754442637006,-400.0,0.00035616,14]
[377557584,1754442637016,-400.0,0.00035616,5]
[377557585,1754442637028,-400.0,0.00035616,14]
[377557586,1754442637045,-400.0,0.00035616,14]
[377557587,1754442637054,-192.36827046,0.00035616,14]
[377557588,1754442637065,-400.0,0.00035616,14]
[377557589,1754442637074,-400.0,0.00035616,14]
[377557590,1754442637085,-516.14,0.00035616,14]
[377557591,1754442637096,-400.0,0.00035616,14]
[377557592,1754442637106,-400.0,0.00035616,14]
[377557593,1754442637116,-400.0,0.00035616,14]
[377557594,1754442637128,-400.0,0.00035616,14]
[377557595,1754442637148,-400.0,0.00035616,14]
[377557596,1754442637158,-400.0,0.00035616,14]
[377557597,1754442637167,-400.0,0.00035616,14]
[377557598,1754442637176,-400.0,0.00035616,14]
[377557599,1754442637185,-400.0,0.00035616,14]
[377557600,1754442637195,-400.0,0.00035616,14]
[377557601,1754442637206,-1588.96,0.00035616,14]
[377557602,1754442637216,-400.0,0.00035616,14]
[377557603,1754442637225,-400.0,0.00035616,14]
[377557604,1754442637235,-501.29,0.00035616,14]
[377557605,1754442637244,-400.0,0.00035616,14]
[377557606,1754442637253,-400.0,0.00035616,14]
[377557607,1754442637263,-400.0,0.00035616,14]
[377557608,1754442637272,-1728.93,0.00035616,14]
[377557609,1754442637281,-400.0,0.00035616,14]
[377557610,1754442637292,-400.0,0.00035616,14]
[377557611,1754442637303,-463.48246184,0.00035616,14]
[377557612,1754442637312,-721.83,0.00035616,14]
[377557613,1754442637322,-842.87,0.00035616,14]
[377557614,1754442637333,-400.0,0.00035616,14]
[377557615,1754442637343,-400.0,0.00035616,14]
[377557616,1754442637354,-1400.15,0.00035616,14]
[377557617,1754442637363,-2022.66,0.00035616,14]
[377557618,1754442637373,-400.0,0.00035616,14]
[377557619,1754442637386,-400.0,0.00035616,14]
[377557620,1754442637396,-400.0,0.00035616,14]
[377557621,1754442637405,-400.0,0.00035616,14]
[377557622,1754442637415,-500.0,0.00035616,30]
[377557623,1754442637424,-1814.02,0.00035616,14]
[377557624,1754442637434,-400.0,0.00035616,14]
[377557625,1754442637443,-400.0,0.00035616,14]
[377557626,1754442637452,-1569.39,0.00035616,14]
[377557627,1754442637462,-699.33,0.00035616,14]
[377557628,1754442637471,-400.0,0.00035616,14]
[377557629,1754442637481,-1178.29,0.00035616,14]
[377557630,1754442637491,-400.0,0.00035616,14]
[377557631,1754442637500,-1387.5,0.00035616,14]
[377557632,1754442637510,-400.0,0.00035616,14]
[377557633,1754442637519,-492.33,0.00035616,14]
[377557634,1754442637529,-400.0,0.00035616,14]
[377557636,1754442637539,-1463.21,0.00035616,14]
[377557638,1754442637549,-544.52,0.00035616,14]
[377557640,1754442637559,-400.0,0.00035616,14]
[377557642,1754442637568,-503.4,0.00035616,14]
[377557643,1754442637578,-400.75236337,0.00035616,14]
[377557644,1754442637587,-400.0,0.00035616,14]
[377557645,1754442637596,-400.1,0.00035616,14]
[377557646,1754442637605,-400.0,0.00035616,14]
[377557647,1754442637614,-1643.62,0.00035616,14]
[377557648,1754442637623,-1833.83,0.00035616,14]
[377557649,1754442637635,-847.42,0.00035616,14]
[377557650,1754442637645,-1450.05,0.00035616,14]
[377557651,1754442637655,-400.0,0.00035616,14]
[377557652,1754442637664,-483.54,0.00035616,14]
[377557653,1754442637674,-400.0,0.00035616,14]
[377557654,1754442637683,-199.91675475,0.00035616,14]
[377557655,1754442637693,-400.0,0.00035616,14]
[377557656,1754442637702,-400.0,0.00035616,14]
[377557657,1754442637712,-150.00243585,0.00035616,14]
[377557658,1754442637721,-1132.33,0.00035616,14]
[377557659,1754442637732,-400.0,0.00035616,14]
[377557660,1754442637741,-1000.0,0.00035616,30]
[377557661,1754442637751,-400.0,0.00035616,14]
[377557662,1754442637760,-400.0,0.00035616,14]
[377557663,1754442637769,-442.941543,0.00035616,14]
[377557664,1754442637778,-400.0,0.00035616,14]
[377557665,1754442637788,-404.42,0.00035616,14]
[377557666,1754442637798,-416.87,0.00035616,14]
[377557667,1754442637807,-289.44168429,0.00035616,14]
[377557668,1754442637844,-110.55831571,0.00035616,14]
[377557669,1754442637854,-400.0,0.00035616,14]
[377557670,1754442637864,-314.44168429,0.00035616,14]
[377557677,1754442640119,-215.45693692,0.00026114,2]
[377557678,1754442640128,-204.72849847,0.00026114,2]
[377557679,1754442640137,-594.72281327,0.00026114,2]
[377557680,1754442640146,-85.55831571,0.00035616,14]
[377557681,1754442640155,-400.0,0.00035616,14]
[377557682,1754442640165,-464.50453072,0.00035616,14]
[377557683,1754442640176,-1097.1,0.00035616,14]
[377557684,1754442640185,-400.0,0.00035616,14]
[377557685,1754442640195,-400.0,0.00035616,14]
[377557686,1754442640209,-146.15521045,0.00035616,14]
[377557687,1754442640231,-2179.09478955,0.00035616,14]
[377557688,1754442640241,-400.0,0.00035616,14]
[377557689,1754442640251,-400.0,0.00035616,14]
[377557690,1754442640259,-369.50521055,0.00035616,14]
[377557691,1754442640302,-317.90889257,0.00035616,14]
[377557692,1754442640318,-1216.52589688,0.00035616,14]
[377557693,1754442640328,-1533.11,0.00035616,14]
[377557694,1754442640337,-500.0,0.00035616,10]
[377557695,1754442640347,-660.51,0.00035616,14]
[377557696,1754442640356,-400.0,0.00035616,14]
[377557697,1754442640365,-460.28,0.00035616,14]
[377557698,1754442640375,-450.03,0.00035616,14]
[377557699,1754442640386,-400.0,0.00035616,14]
[377557700,1754442640395,-400.0,0.00035616,14]
[377557701,1754442640404,-400.0,0.00035616,14]
[377557703,1754442640414,-1254.32,0.00035616,14]
[377557704,1754442640424,-1717.8,0.00035616,14]
[377557705,1754442640433,-400.0,0.00035616,14]
[377557706,1754442640442,-400.0,0.00035616,14]
[377557707,1754442640452,-400.0,0.00035616,14]
[377557708,1754442640461,-400.0,0.00035616,14]
[377557709,1754442640470,-1428.48,0.00035616,14]
[377557710,1754442640481,-733.28,0.00035616,14]
[377557711,1754442640491,-400.0,0.00035616,14]
[377557712,1754442640500,-400.0,0.00035616,14]
[377557713,1754442640509,-400.0,0.00035616,14]
[377557714,1754442640518,-827.0,0.00035616,14]
[377557715,1754442640527,-400.0,0.00035616,14]
[377557716,1754442640536,-470.72,0.00035616,14]
[377557717,1754442640545,-400.0,0.00035616,14]
[377557718,1754442640555,-400.0,0.00035616,14]
[377557719,1754442640565,-424.41,0.00035616,14]
[377557720,1754442640575,-1695.19,0.00035616,14]
[377557721,1754442640584,-1633.57,0.00035616,14]
[377557722,1754442640593,-1386.71,0.00035616,14]
[377557723,1754442640603,-526.05,0.00035616,14]
[377557724,1754442640612,-400.0,0.00035616,14]
[377557725,1754442640623,-400.0,0.00035616,14]
[377557726,1754442640634,-400.0,0.00035616,14]
[377557727,1754442640643,-1774.92,0.00035616,14]
[377557728,1754442640653,-523.37,0.00035616,14]
[377557729,1754442640662,-1821.42,0.00035616,14]
[377557730,1754442640672,-400.0,0.00035616,14]
[377557731,1754442640681,-403.11,0.00035616,14]
[377557732,1754442640690,-400.0,0.00035616,14]
[377557733,1754442640699,-400.0,0.00035616,14]
[377557734,1754442640708,-537.16,0.00035616,14]
[377557735,1754442640717,-1326.6,0.00035616,14]
[377557736,1754442640726,-1845.51,0.00035616,14]
[377557737,1754442640735,-406.36,0.00035616,14]
[377557738,1754442640744,-400.0,0.00035616,14]
[377557739,1754442640754,-547.22,0.00035616,14]
[377557740,1754442640763,-329.92002751,0.00035616,14]
[377557741,1754442640783,-358.26289886,0.00035616,14]
[377557742,1754442640794,-213.99707363,0.00035616,14]
[377557743,1754442640803,-129.93334414,0.00035616,14]
[377557744,1754442640830,-251.99557181,0.00035616,14]
[377557745,1754442640841,-18.07108405,0.00035616,14]
[377557746,1754442640850,-400.0,0.00035616,14]
[377557747,1754442640859,-400.0,0.00035616,14]
[377557748,1754442640868,-1145.28,0.00035616,14]
[377557749,1754442640878,-400.0,0.00035616,14]
[377557750,1754442640888,-553.06,0.00035616,14]
[377557751,1754442640897,-400.0,0.00035616,14]
[377557752,1754442640907,-2832.17,0.00035616,14]
[377557753,1754442640916,-2180.85,0.00035616,14]
[377557754,1754442640925,-2243.29,0.00035616,14]